fUSD/lending_fUSD_20241219
["ID","MTS","AMOUNT","RATE_DAILY","PERIOD"]
[345990402,1734610246824,-500.0,0.00021917,4]
[345990403,1734610246833,-500.0,0.00021917,4]
[345990404,1734610246842,-500.0,0.00021917,4]
[345990405,1734610246852,-500.0,0.00021917,4]
[345990406,1734610246862,-500.0,0.00021917,4]
[345990407,1734610246871,-500.0,0.00021917,4]
[345990408,1734610246880,-500.0,0.00021917,4]
[345990409,1734610246891,-500.0,0.00021917,4]
[345990410,1734610246901,-173.97583292,0.00021917,4]
[345990411,1734610246921,-326.02416708,0.00021917,4]
[345990412,1734610246931,-500.0,0.00021917,4]
[345990413,1734610246940,-500.0,0.00021917,4]
[345990414,1734610246949,-356.08622671,0.00021917,4]
[345990415,1734610246963,-500.0,0.00021917,4]
[345990416,1734610246972,-500.0,0.00021917,4]
[345990417,1734610246981,-500.0,0.00021917,4]
[345990418,1734610246991,-629.53441978,0.00021917,4]
[345990419,1734610247000,-500.0,0.00021917,4]
[345990420,1734610247010,-500.0,0.00021917,4]
[345990421,1734610247020,-500.0,0.00021917,4]
[345990422,1734610247030,-34.15518643,0.00021917,4]
[345990430,1734610515381,155.36,0.00010137,2]
[345990431,1734610515592,155.36,0.00017184,2]
[345990438,1734611330173,963.64,0.00017373,2]
[345990447,1734611408637,159.4,0.00010137,2]
[345990459,1734611431588,-3057.72513605,0.00018968,2]
[345990460,1734611431598,-300.0,0.00019067,2]
[345990461,1734611431608,-1770.70920115,0.00019068,2]
[345990462,1734611431646,-982.43337259,0.00019068,2]
[345990463,1734611431760,-20879.85742626,0.00019068,2]
[345990464,1734611431770,-511.5985,0.00019145,2]
[345990465,1734611431780,-743.55491764,0.00019191,2]
[345990466,1734611431789,-179.47,0.00019196,2]
[345990467,1734611431799,-23900.0,0.00019291,2]
[345990468,1734611431808,-250.0,0.00019291,2]
[345990469,1734611431818,-61663.52,0.00019291,2]
[345990470,1734611431828,-1142.32,0.00019371,2]
[345990471,1734611431839,-656.76,0.00019444,2]
[345990472,1734611431850,-914.07,0.00019482,2]
[345990473,1734611431863,-278.13,0.00019572,2]
[345990474,1734611431873,-963.64,0.00019637,2]
[345990475,1734611431882,-520.22,0.00019704,2]
[345990476,1734611431891,-1500.0,0.00019723,2]
[345990477,1734611431901,-1000.0,0.00019875,2]
[345990478,1734611431910,-250.0,0.00019879,2]
[345990479,1734611431920,-11232.80167764,0.0001998,2]
[345990480,1734611431930,-7134.49342786,0.0002,4]
[345990481,1734611431940,-250.0,0.00020061,2]
[345990482,1734611431950,-120452.54342525,0.00020065,3]
[345990483,1734611431959,-965.92723509,0.00020065,3]
[345990484,1734611431969,-45131.16,0.00020066,2]
[345990485,1734611431979,-500.0,0.00020066,2]
[345990486,1734611431989,-500.0,0.00020068,2]
[345990487,1734611431998,-700.0,0.00020068,2]
[345990488,1734611432008,-150.95,0.00020084,2]
[345990489,1734611432018,-1500.0,0.00020178,2]
[345990490,1734611432028,-278.13,0.00020296,2]
[345990491,1734611432037,-3730.9431,0.000205,2]
[345990492,1734611432047,-312233.5871,0.000205,2]
[345990495,1734611432062,-1262.19589454,0.000205,2]
[345990497,1734611432072,-150.69,0.0002059,2]
[345990499,1734611432081,-190.74578364,0.00020592,2]
[345990501,1734611432091,-93590.23,0.000206,2]
[345990503,1734611432101,-250.0,0.00020604,2]
[345990505,1734611432114,-264.8778,0.00020657,2]
[345990506,1734611432124,-513.65,0.00020659,2]
[345990507,1734611432133,-513.65,0.00020665,2]
[345990508,1734611432142,-513.65,0.0002067,2]
[345990509,1734611432151,-513.65,0.00020676,2]
[345990510,1734611432160,-513.65,0.00020681,2]
[345990511,1734611432169,-32602.76190761,0.00020682,2]
[345990512,1734611432181,-513.65,0.00020687,2]
[345990513,1734611432191,-513.65,0.00020692,2]
[345990514,1734611432201,-513.65,0.00020697,2]
[345990515,1734611432210,-513.65,0.00020703,2]
[345990516,1734611432220,-513.65,0.00020708,2]
[345990517,1734611432230,-513.65,0.00020714,2]
[345990518,1734611432239,-513.65,0.00020719,2]
[345990519,1734611432249,-513.65,0.00020725,2]
[345990520,1734611432259,-513.65,0.0002073,2]
[345990521,1734611432269,-513.65,0.00020735,2]
[345990522,1734611432278,-513.65,0.00020741,2]
[345990523,1734611432287,-513.65,0.00020746,2]
[345990524,1734611432296,-513.65,0.00020752,2]
[345990525,1734611432306,-513.65,0.00020757,2]
[345990527,1734611432315,-513.65,0.00020763,2]
[345990529,1734611432325,-151.0,0.00020769,2]
[345990531,1734611432338,-290.0,0.00020769,2]
[345990533,1734611432348,-151.499968,0.00020769,2]
[345990534,1734611432357,-420.0,0.00020782,2]
[345990535,1734611432370,-1708.64,0.00020822,2]
[345990536,1734611432381,-500.0,0.00020829,2]
[345990538,1734611432390,-162.13,0.00020857,2]
[345990540,1734611432400,-1262.19589448,0.00020954,2]
[345990542,1734611432412,-11613.46926282,0.00021,2]
[345990544,1734611432421,-278.13,0.0002102,2]
[345990546,1734611432431,-1500.0,0.00021035,2]
[345990548,1734611432440,-418.53440087,0.00021056,2]
[345990550,1734611432449,-495.97,0.00021068,2]
[345990552,1734611432458,-500.71,0.00021068,2]
[345990554,1734611432468,-443.479,0.0002108,2]
[345990556,1734611432478,-150.69,0.00021117,2]
[345990558,1734611432487,-32602.76190756,0.00021127,2]
[345990560,1734611432498,-700.0,0.00021164,2]
[345990562,1734611432508,-418.53440087,0.00021241,2]
[345990564,1734611432517,-1262.19589448,0.00021408,2]
[345990566,1734611432526,-200.0,0.00021474,2]
[345990568,1734611432535,-1500.0,0.0002154,2]
[345990570,1734611432544,-418.53440087,0.00021566,2]
[345990572,1734611432554,-201.64,0.00021568,2]
[345990574,1734611432563,-32602.76190756,0.00021572,2]
[345990576,1734611432573,-151.0,0.00021572,2]
[345990578,1734611432582,-7500.0,0.00021591,2]
[345990580,1734611432592,-1708.64,0.00021592,2]
[345990582,1734611432602,-418.53440088,0.00021668,2]
[345990585,1734611432614,-600.0,0.000217,7]
[345990587,1734611432625,-19084.8043,0.00021716,2]
[345990589,1734611432635,-278.13,0.00021744,2]
[345990591,1734611432644,-275.7767948,0.00021746,2]
[345990593,1734611432653,-150.69,0.0002177,2]
[345990595,1734611432663,-82084.97264689,0.0002178,2]
[345990597,1734611432675,-183328.11465311,0.0002178,2]
[345990599,1734611432686,-2754.79205034,0.0002178,2]
[345990601,1734611432695,-2754.79205034,0.00021799,2]
[345990603,1734611432705,-1300.0,0.000218,7]
[345990605,1734611432715,-150.69,0.00021807,2]
[345990607,1734611432725,-125203.3538,0.00021817,2]
[345990609,1734611432735,-288.2881,0.00021817,2]
[345990611,1734611432745,-24697.0432,0.00021817,2]
[345990613,1734611432755,-799.6625,0.00021817,2]
[345990615,1734611432766,-544.4476,0.00021817,2]
[345990617,1734611432776,-175.83007296,0.00021817,2]
[345990619,1734611432785,-151.0,0.00021817,2]
[345990621,1734611432795,-151.0,0.00021817,2]
[345990623,1734611432805,-151.0,0.00021817,2]
[345990625,1734611432815,-2754.79205034,0.00021817,2]
[345990627,1734611432824,-150.0,0.00021842,2]
[345990629,1734611432833,-1262.19589448,0.00021862,2]
[345990631,1734611432843,-165.06044974,0.0002187,2]
[345990633,1734611432852,-150.69,0.0002187,2]
[345990635,1734611432865,-150.69,0.0002187,2]
[345990636,1734611432875,-500.0,0.00021879,2]
[345990637,1734611432884,-500.0,0.00021879,2]
[345990638,1734611432894,-228.07260886,0.00021879,2]
[345990639,1734611432904,-500.0,0.00021879,2]
[345990640,1734611433078,-500.0,0.00021879,2]
[345990641,1734611433089,-500.0,0.00021879,2]
[345990642,1734611433100,-500.0,0.00021879,2]
[345990643,1734611433110,-500.0,0.00021879,2]
[345990644,1734611433124,-500.0,0.00021879,2]
[345990645,1734611433134,-500.0,0.00021879,2]
[345990646,1734611433144,-500.0,0.00021879,2]
[345990647,1734611433153,-275.60410098,0.00021879,2]
[345990648,1734611433162,-23707.02802063,0.0002188,2]
[345990649,1734611433211,-15134.69560056,0.0002188,2]
[345990650,1734611433223,-118208.48353015,0.0002188,2]
[345990654,1734611437642,-10248.0,0.0002161,2]
[345990655,1734611437755,-3492.0,0.0002161,2]
[345990656,1734611437766,-1169.174,0.0002161,2]
[345990657,1734611437776,-9756.18332665,0.0002188,2]
[345990658,1734611437812,-7053.23970044,0.0002188,2]
[345990669,1734611439846,-530.62267789,0.00020599,2]
[345990670,1734611439856,-220.0,0.0002178,2]
[345990671,1734611439868,-5956.49512158,0.0002188,2]
[345990672,1734611439880,-376.9375176,0.0002188,2]
[345990673,1734611439905,-511.75,0.0002188,2]
[345990695,1734611445560,-300.73620731,0.000217,2]
[345990696,1734611445571,-1470.02598269,0.000217,2]
[345990697,1734611445580,-8782.4380173,0.0002188,2]
[345990704,1734611477202,252.67642441,0.00016781,7]
[345990705,1734611484130,5643.34741526,0.000225,30]
[345990707,1734611965639,150.94521193,0.000235,90]
[345990708,1734612075685,-245.6,0.00019998,2]
[345990709,1734612075708,-248.56,0.00019998,2]
[345990710,1734612075731,-249.7,0.00019998,2]
[345990711,1734612075752,-249.97,0.00019998,2]
[345990712,1734612075774,-254.93,0.00019998,2]
[345990713,1734612075796,-249.44,0.00019998,2]
[345990714,1734612075818,-245.4,0.00019998,2]
[345990715,1734612075840,-248.06,0.00019998,2]
[345990716,1734612075862,-250.54,0.00019998,2]
[345990717,1734612075883,-252.06,0.00019998,2]
[345990718,1734612075904,-247.31,0.00019998,2]
[345990719,1734612075926,-248.86,0.00019998,2]
[345990720,1734612075948,-250.37,0.00019999,2]
[345990721,1734612075971,-253.34,0.00019999,2]
[345990722,1734612075993,-247.32,0.00019999,2]
[345990723,1734612076017,-249.57,0.00019999,2]
[345990724,1734612076039,-246.0,0.00019999,2]
[345990725,1734612076061,-247.88,0.00019999,2]
[345990726,1734612076084,-247.33,0.00019999,2]
[345990727,1734612076106,-250.58,0.00019999,2]
[345990728,1734612076129,-249.86,0.00019999,2]
[345990729,1734612076153,-247.36,0.00019999,2]
[345990730,1734612076176,-249.58,0.00019999,2]
[345990731,1734612076198,-247.62,0.00019999,2]
[345990732,1734612076221,-252.42,0.00019999,2]
[345990733,1734612076243,-254.71,0.00019999,2]
[345990734,1734612076264,-246.07,0.00019999,2]
[345990735,1734612076286,-16929.56,0.0002,2]
[345990736,1734612389572,150.82,0.00010137,2]
[345990772,1734612631705,-359.63859129,0.00018445,2]
[345990773,1734612631762,-563.91140871,0.00018445,2]
[345990774,1734612631772,-250.0,0.00019929,2]
[345990775,1734612631782,-250.0,0.00019962,2]
[345990776,1734612631791,-3070.44,0.0002,2]
[345990777,1734612631800,-1475.63516,0.0002,2]
[345990778,1734612631810,-180.73,0.00020007,2]
[345990779,1734612631819,-150.0,0.00020023,2]
[345990780,1734612631828,-500.0,0.00020068,2]
[345990781,1734612631838,-700.0,0.00020068,2]
[345990782,1734612631847,-23900.0,0.00020209,2]
[345990783,1734612631856,-250.0,0.00020263,2]
[345990784,1734612631866,-150.0,0.00020384,2]
[345990785,1734612631875,-2751.0,0.00020413,2]
[345990786,1734612631889,-250.0,0.0002054,2]
[345990787,1734612631899,-500.0,0.00020547,2]
[345990788,1734612631908,-223.95,0.00020588,2]
[345990789,1734612631918,-3617.16008963,0.00020609,2]
[345990793,1734612632131,-40826.0,0.00020609,2]
[345990795,1734612632210,-23215.34434042,0.00020609,2]
[345990798,1734612632224,-457.32324151,0.00020609,2]
[345990883,1734612637732,-7771.62024578,0.00020609,2]
[345990884,1734612637770,-3999.9999995,0.00020609,2]
[345990885,1734612637798,-3004.60843179,0.00020609,2]
[345990886,1734612637827,-23889.09707678,0.00020609,2]
[345990896,1734612638285,-75590.09372696,0.00020609,2]
[345990897,1734612638295,-757.31753676,0.00020609,2]
[345990898,1734612638494,-923.55,0.00020709,2]
[345990899,1734612638506,-1000.0,0.00020754,2]
[345990900,1734612638516,-592.7,0.00020799,2]
[345990901,1734612638526,-1455.71,0.00020822,2]
[345990902,1734612638536,-150.69,0.0002099,2]
[345990903,1734612638546,-150.69,0.0002099,2]
[345990904,1734612638555,-150.69,0.0002099,2]
[345990905,1734612638565,-150.69,0.0002099,2]
[345990906,1734612638574,-150.69,0.0002099,2]
[345990907,1734612638584,-150.69,0.0002099,2]
[345990908,1734612638594,-150.69,0.0002099,2]
[345990909,1734612638603,-150.69,0.0002099,2]
[345990910,1734612638613,-150.69,0.0002099,2]
[345990911,1734612638622,-150.69,0.0002099,2]
[345990912,1734612638631,-48632.30218075,0.00021,3]
[345990914,1734612639860,-361.54,0.00020639,2]
[345990915,1734612639870,-1439.82198597,0.00021,3]
[345990916,1734612639883,-2916.13801403,0.00021,3]
[345990917,1734612639919,-5117.0684,0.00021,3]
[345990918,1734612639931,-931.93705245,0.00021,3]
[345990927,1734612642972,-406.1367034,0.00021,3]
[345990934,1734612645892,-150.33645723,0.00021,3]
[345990935,1734612645966,-2262.51825,0.00021,3]
[345990936,1734612645977,-10233.426,0.00021,3]
[345990937,1734612646043,-1000.678,0.00021,3]
[345990938,1734612646062,-1696.36301046,0.00021,3]
[345990946,1734613271122,155.36,0.00010137,2]
[345990967,1734613831974,-155.36,0.00018065,2]
[345990968,1734613831984,-928.72,0.00018269,2]
[345990969,1734613831994,-1771.83574988,0.000187,2]
[345990970,1734613832005,-413.21193929,0.000187,2]
[345990971,1734613832032,-1269.04279635,0.000187,2]
[345990972,1734613832147,-1221.47,0.000187,2]
[345990973,1734613832160,-600.0,0.000187,2]
[345990974,1734613832171,-900.0,0.000187,2]
[345990982,1734613837845,-335.91312195,0.000187,2]
[345990983,1734613837856,-600.0,0.00019,2]
[345990984,1734613837865,-223.95,0.00019485,2]
[345990985,1734613837875,-474.16,0.00019559,2]
[345990986,1734613837884,-165.04,0.00019614,2]
[345990987,1734613837894,-250.0,0.00019711,2]
[345990988,1734613837903,-204.0,0.00019764,2]
[345990989,1734613837913,-7926.21155922,0.00019765,2]
[345990990,1734613837963,-982.07844078,0.00019765,2]
[345990991,1734613837973,-250.0,0.00019851,2]
[345990992,1734613837982,-548.95,0.00019887,2]
[345990993,1734613837991,-180.77,0.00019887,2]
[345990994,1734613838000,-186.44,0.00019957,2]
[345990995,1734613838009,-250.0,0.00019986,2]
[345990996,1734613838019,-600.0,0.0002,3]
[345990997,1734613838028,-600.0,0.00020068,2]
[345990998,1734613838037,-500.0,0.00020068,2]
[345990999,1734613838048,-500.0,0.00020068,2]
[345991000,1734613838060,-200.10686028,0.00020068,2]
[345991001,1734613838069,-19613.11,0.00020093,2]
[345991002,1734613838079,-2973.0,0.00020173,2]
[345991003,1734613838087,-150.0,0.00020195,4]
[345991004,1734613838098,-150.0,0.00020195,4]
[345991005,1734613838107,-150.0,0.00020195,4]
[345991006,1734613838117,-500.0,0.00020252,2]
[345991007,1734613838127,-25.54569894,0.00020406,2]
[345991008,1734613838161,-224.45430106,0.00020406,2]
[345991009,1734613838170,-928.72,0.00020533,2]
[345991010,1734613838180,-1000.0,0.00020541,2]
[345991011,1734613838189,-152.75,0.000206,2]
[345991012,1734613838199,-376.47066694,0.000206,2]
[345991013,1734613838222,-349.71933306,0.000206,2]
[345991014,1734613838231,-872.35,0.000206,2]
[345991015,1734613838240,-152.06,0.000206,2]
[345991016,1734613838250,-600.0,0.000206,7]
[345991017,1734613838259,-579.00667307,0.000207,7]
[345991022,1734613840142,-434.71481276,0.000207,7]
[345991023,1734613840256,-286.27851417,0.000207,7]
[345991024,1734613840266,-123.95359788,0.00020741,2]
[345991049,1734613843144,-292.21640212,0.00020741,2]
[345991050,1734613843154,-150.0,0.00020755,4]
[345991051,1734613843164,-1075.61061188,0.000208,7]
[345991064,1734613845876,-824.38938812,0.000208,7]
[345991066,1734613845885,-2500.0,0.000208,2]
[345991068,1734613845894,-3160.677,0.000208,2]
[345991070,1734613845903,-1332.89,0.00020822,2]
[345991072,1734613845914,-188.02,0.00020882,2]
[345991074,1734613845924,-218.27004519,0.00020899,4]
[345991076,1734613845934,-9401.5924,0.000209,2]
[345991077,1734613845944,-153.64504024,0.000209,2]
[345991078,1734613845953,-279.67220387,0.000209,2]
[345991079,1734613845962,-1000.0,0.000209,2]
[345991080,1734613845971,-1372.62592258,0.000209,2]
[345991081,1734613845985,-7388.63607982,0.000209,2]
[345991082,1734613846000,-254.0389,0.000209,2]
[345991088,1734614187230,159.4,0.00010137,2]
[345991089,1734614285548,10000.0,0.0002351,90]
[345991090,1734614302028,10000.0,0.0002351,90]
[345991091,1734614316240,10000.0,0.0002351,90]
[345991092,1734614331385,10000.0,0.0002351,90]
[345991093,1734614475718,-953.72,0.00018171,2]
[345991094,1734614475742,-359.63859129,0.00019573,2]
[345991095,1734614475769,-250.0,0.00019673,2]
[345991096,1734614475798,-410.2,0.00019758,2]
[345991097,1734614475822,-153.99,0.00019981,2]
[345991098,1734614475846,-300.0,0.00019995,2]
[345991099,1734614475871,-23900.0,0.00019996,2]
[345991100,1734614551773,699.56,0.00019903,2]
[345991101,1734614572349,4349.11,0.00019893,2]
[345991102,1734614623547,250.0,0.00019889,2]
[345991103,1734614670656,164.31,0.00019877,2]
[345991104,1734614702908,150.0,0.00019948,4]
[345991105,1734614705078,150.0,0.00019948,4]
[345991106,1734614712347,150.0,0.00019948,4]
[345991107,1734614729525,277.55,0.00019889,2]
[345991108,1734614770200,4674.99499878,0.000199,3]
[345991109,1734614845115,676.1712189,0.000235,90]
[345991111,1734614855226,1568.18497486,0.0002,2]
[345991112,1734614868470,3820.02696077,0.0002,2]
[345991113,1734614878233,2770.10911112,0.0002,4]
[345991114,1734614880457,302.96,0.00019839,3]
[345991115,1734614897031,156.87,0.00019823,2]
[345991116,1734614898049,163.94489961,0.0002,2]
[345991118,1734614907468,1953.47037456,0.0002,2]
[345991120,1734614944989,250.0,0.000198,2]
[345991121,1734614972110,1000.0,0.00019811,2]
[345991122,1734615029376,156.34,0.00010137,2]
[345991133,1734615032255,-153.99,0.00020006,2]
[345991134,1734615032265,-250.0,0.00020014,2]
[345991135,1734615032275,-153.99,0.00020031,2]
[345991136,1734615032286,-186.44,0.00020036,2]
[345991137,1734615032296,-153.99,0.00020056,2]
[345991138,1734615032306,-700.0,0.00020068,2]
[345991139,1734615032315,-153.99,0.00020081,2]
[345991140,1734615032325,-2751.0,0.0002011,2]
[345991141,1734615032335,-166.74,0.00020397,2]
[345991142,1734615032345,-953.72,0.00020435,2]
[345991143,1734615032355,-500.0,0.000206,7]
[345991144,1734615032365,-609.65640882,0.000206,2]
[345991145,1734615032375,-55927.0,0.00020655,2]
[345991146,1734615032385,-1000.0,0.000207,7]
[345991147,1734615032399,-770.02,0.000207,2]
[345991148,1734615032408,-436.69,0.000207,2]
[345991149,1734615032418,-766.02,0.000207,2]
[345991151,1734615032430,-432.53,0.000207,2]
[345991153,1734615032441,-483.327,0.0002079,2]
[345991155,1734615032451,-1000.0,0.000208,2]
[345991156,1734615032460,-6092.3397,0.000208,2]
[345991157,1734615032471,-1316.7971,0.000208,2]
[345991158,1734615032481,-575.3849,0.000208,2]
[345991159,1734615032491,-1000.0,0.000208,2]
[345991160,1734615032501,-3293.6905,0.000208,2]
[345991161,1734615032510,-231.8341,0.000208,2]
[345991162,1734615032520,-1500.0,0.000208,7]
[345991163,1734615032530,-2500.0,0.000208,2]
[345991164,1734615032540,-15761.14319629,0.000208,2]
[345991165,1734615032551,-1352.0,0.000208,2]
[345991170,1734615038176,-8412.47040371,0.000208,2]
[345991171,1734615038187,-209.041,0.00020822,2]
[345991172,1734615038198,-1099.46,0.00020822,2]
[345991173,1734615038207,-1175.64,0.00020822,2]
[345991174,1734615038216,-482.96361754,0.00020874,3]
[345991175,1734615038225,-52605.45934139,0.00020874,3]
[345991176,1734615038234,-100148.1503,0.00020874,2]
[345991177,1734615038243,-1915.007,0.00020899,2]
[345991178,1734615038253,-239.71903188,0.000209,2]
[345991179,1734615038262,-5000.0,0.000209,2]
[345991180,1734615038271,-436.69,0.000209,2]
[345991181,1734615038281,-770.02,0.000209,2]
[345991182,1734615038291,-2329.65726,0.000209,2]
[345991184,1734615038300,-436.69,0.000209,2]
[345991186,1734615038309,-770.02,0.000209,2]
[345991188,1734615038318,-2100.0,0.000209,7]
[345991190,1734615038327,-975.36,0.00020904,2]
[345991191,1734615038336,-567.42,0.00020904,2]
[345991192,1734615038346,-150.47,0.00020904,2]
[345991193,1734615038355,-582.0,0.00020904,2]
[345991194,1734615038364,-150.0,0.00020904,2]
[345991195,1734615038373,-300.77,0.00020904,2]
[345991196,1734615038382,-436.03,0.00020904,2]
[345991197,1734615038391,-436.03,0.00020904,2]
[345991198,1734615038402,-436.03,0.00020904,2]
[345991199,1734615038411,-434.99,0.00020904,2]
[345991200,1734615038420,-641.22154269,0.00020973,2]
[345991201,1734615038429,-500.0,0.00020973,2]
[345991202,1734615038440,-150.7,0.0002099,2]
[345991203,1734615038450,-150.7,0.0002099,2]
[345991204,1734615038459,-150.7,0.0002099,2]
[345991205,1734615038468,-150.7,0.0002099,2]
[345991206,1734615038478,-150.7,0.0002099,2]
[345991207,1734615038488,-150.7,0.0002099,2]
[345991208,1734615038497,-1000.0,0.00020999,2]
[345991209,1734615038506,-1000.0,0.00020999,3]
[345991210,1734615038516,-153.68080552,0.00020999,2]
[345991211,1734615038525,-616.67,0.00020999,2]
[345991212,1734615038534,-542.08530019,0.00020999,2]
[345991213,1734615038543,-500.0,0.00020999,2]
[345991214,1734615038552,-500.0,0.00020999,2]
[345991215,1734615038561,-544.96032801,0.00020999,2]
[345991216,1734615038571,-500.0,0.00020999,2]
[345991217,1734615038581,-2551141.0,0.00021,2]
[345991218,1734615038590,-84283.59541719,0.00021,3]
[345991219,1734615038600,-600.0,0.00021,5]
[345991220,1734615038610,-2000.0,0.00021,2]
[345991221,1734615038619,-200.0,0.00021,2]
[345991222,1734615038628,-496.2,0.00021,2]
[345991223,1734615038637,-500.23,0.00021,2]
[345991224,1734615038646,-507.92,0.00021,2]
[345991225,1734615038655,-508.36,0.00021,2]
[345991226,1734615038664,-150.0,0.00021056,4]
[345991227,1734615038673,-150.0,0.00021056,4]
[345991228,1734615038683,-500.78,0.00021068,2]
[345991229,1734615038692,-498.67,0.00021068,2]
[345991230,1734615038702,-493.0,0.00021068,2]
[345991231,1734615038711,-495.31,0.00021068,2]
[345991232,1734615038720,-499.93,0.00021068,2]
[345991233,1734615038729,-508.46,0.00021068,2]
[345991234,1734615038738,-491.49,0.00021068,2]
[345991235,1734615038747,-498.55,0.00021068,2]
[345991236,1734615038756,-500.92,0.00021068,2]
[345991237,1734615038765,-507.27,0.00021068,2]
[345991238,1734615038774,-505.25,0.00021068,2]
[345991239,1734615038783,-498.56,0.00021068,2]
[345991240,1734615038793,-501.35,0.00021068,2]
[345991241,1734615038803,-495.16,0.00021068,2]
[345991242,1734615038812,-504.91,0.00021068,2]
[345991243,1734615038821,-493.9,0.00021068,2]
[345991244,1734615038830,-494.49,0.00021068,2]
[345991245,1734615038840,-509.3,0.00021068,2]
[345991246,1734615038849,-501.71,0.00021068,2]
[345991247,1734615038859,-497.28,0.00021068,2]
[345991248,1734615038868,-501.26,0.00021068,2]
[345991249,1734615038877,-503.49,0.00021068,2]
[345991250,1734615038887,-509.93,0.00021068,2]
[345991251,1734615038896,-490.77,0.00021068,2]
[345991252,1734615038907,-501.7,0.00021068,2]
[345991253,1734615038916,-499.46,0.00021068,2]
[345991254,1734615038926,-496.84,0.00021068,2]
[345991255,1734615038936,-499.11,0.00021068,2]
[345991256,1734615038946,-492.59,0.00021068,2]
[345991257,1734615038955,-501.17,0.00021068,2]
[345991258,1734615038965,-493.19,0.00021068,2]
[345991259,1734615038974,-495.47,0.00021068,2]
[345991260,1734615038983,-500.64,0.00021068,2]
[345991261,1734615038992,-500.33,0.00021068,2]
[345991262,1734615039002,-507.95,0.00021068,2]
[345991263,1734615039011,-508.65,0.00021068,2]
[345991264,1734615039020,-491.83,0.00021068,2]
[345991265,1734615039029,-498.62,0.00021068,2]
[345991266,1734615039038,-497.01,0.00021068,2]
[345991267,1734615039047,-496.91,0.00021068,2]
[345991268,1734615039057,-495.3,0.00021068,2]
[345991269,1734615039066,-154.459541,0.00021068,2]
[345991270,1734615039076,-155.399018,0.00021068,2]
[345991271,1734615039086,-151.0,0.00021068,2]
[345991272,1734615039095,-151.0,0.00021068,2]
[345991273,1734615039105,-616.67,0.00021136,2]
[345991274,1734615039114,-167.41,0.00021163,2]
[345991275,1734615039123,-500.0,0.00021164,2]
[345991276,1734615039133,-500.0,0.00021164,2]
[345991277,1734615039142,-700.0,0.00021164,2]
[345991278,1734615039151,-1000.0,0.000212,2]
[345991279,1734615039160,-2000.0,0.0002121,2]
[345991280,1734615039169,-200.0,0.0002121,2]
[345991281,1734615039179,-616.67,0.00021273,2]
[345991282,1734615039188,-1000.0,0.000213,2]
[345991283,1734615039199,-999.0,0.00021369,2]
[345991284,1734615039208,-1000.0,0.000214,2]
[345991285,1734615039217,-616.67,0.0002141,2]
[345991286,1734615039226,-2000.0,0.00021422,2]
[345991287,1734615039236,-200.0,0.00021422,2]
[345991288,1734615039245,-151.0,0.00021422,2]
[345991289,1734615039254,-151.0,0.00021422,2]
[345991290,1734615039263,-275.7767949,0.00021442,2]
[345991291,1734615039272,-1000.0,0.00021521,2]
[345991292,1734615039281,-616.67,0.00021547,2]
[345991293,1734615039291,-509.24,0.00021556,2]